bitfinex/quotes_BTCUSD_20220405
["timestamp","ask_amount","ask_price","bid_price","bid_amount"]
[1649128369624,0.27190078,46740.0,46737.0,0.0107]
[1649128370882,0.3,46739.0,46737.0,0.0107]
[1649128371123,0.364689,46738.0,46736.0,0.00057779]
[1649128371198,0.3,46737.0,46736.0,0.00057779]
[1649128371298,1.29204539,46737.0,46736.0,0.00057779]
[1649128371394,1.33484539,46737.0,46734.0,0.10917826]
[1649128371492,1.199989,46737.0,46734.0,0.10917826]
[1649128371592,0.13485639,46735.0,46734.0,0.10975696]
[1649128371794,0.17765639,46735.0,46734.0,0.10975696]
[1649128372595,0.17765639,46735.0,46734.0,0.10917826]
[1649128374050,0.0428,46735.0,46734.0,0.37796486]
[1649128375227,0.0428,46735.0,46734.0,0.10917826]
[1649128375325,0.0431211,46735.0,46734.0,0.10917826]
[1649128378230,0.0431211,46735.0,46734.0,0.21917826]
[1649128379665,0.0431211,46735.0,46734.0,0.10917826]
[1649128380017,0.1431211,46735.0,46734.0,0.10917826]
[1649128380117,0.1431211,46735.0,46734.0,0.10062486]
[1649128380620,0.74501246,46735.0,46734.0,0.10062486]
[1649128382366,0.70221246,46735.0,46734.0,0.10062486]
[1649128382864,0.70189136,46735.0,46734.0,0.10062486]
[1649128391914,1.06658036,46735.0,46734.0,0.10062486]
[1649128392015,0.74469136,46735.0,46734.0,0.10062486]
[1649128396872,1.06658036,46735.0,46734.0,0.10062486]
[1649128396970,0.74469136,46735.0,46734.0,0.10062486]
[1649128398168,1.06658036,46735.0,46734.0,0.10062486]
[1649128398267,0.74469136,46735.0,46734.0,0.10062486]
[1649128398370,0.70189136,46735.0,46734.0,0.10062486]
[1649128398467,1.02378036,46735.0,46734.0,0.10062486]
[1649128398567,0.70189136,46735.0,46734.0,0.10062486]
[1649128398968,1.02378036,46735.0,46734.0,0.10062486]
[1649128399270,0.23240084,46735.0,46734.0,0.10062486]
[1649128399372,0.55428984,46735.0,46734.0,0.10062486]
[1649128400222,0.59708984,46735.0,46734.0,0.10062486]
[1649128400328,0.64708984,46735.0,46734.0,0.10062486]
[1649128401069,0.78194623,46735.0,46734.0,0.10062486]
[1649128401719,0.64708984,46735.0,46734.0,0.10062486]
[1649128405233,0.78194623,46735.0,46734.0,0.10062486]
[1649128405333,0.73914623,46735.0,46734.0,0.10062486]
[1649128405533,0.41725723,46735.0,46734.0,0.10062486]
[1649128405635,0.73914623,46735.0,46734.0,0.10062486]
[1649128407587,0.41725723,46735.0,46734.0,0.10062486]
[1649128407792,0.73914623,46735.0,46734.0,0.10062486]
[1649128407889,0.41725723,46735.0,46734.0,0.10062486]
[1649128407990,0.73914623,46735.0,46734.0,0.10062486]
[1649128408090,0.41725723,46735.0,46734.0,0.10062486]
[1649128408638,0.73914623,46735.0,46734.0,0.10062486]
[1649128408733,0.41725723,46735.0,46734.0,0.10062486]
[1649128409539,0.73914623,46735.0,46734.0,0.10062486]
[1649128409685,0.83914623,46735.0,46734.0,0.10062486]
[1649128409783,0.51725723,46735.0,46734.0,0.10062486]
[1649128409987,0.83914623,46735.0,46734.0,0.10062486]
[1649128410085,0.51725723,46735.0,46734.0,0.10062486]
[1649128410285,0.83914623,46735.0,46734.0,0.10062486]
[1649128410737,0.51725723,46735.0,46734.0,0.10062486]
[1649128410937,0.41725723,46735.0,46734.0,0.10062486]
[1649128411040,0.73914623,46735.0,46734.0,0.10062486]
[1649128411842,0.41725723,46735.0,46734.0,0.10062486]
[1649128411941,0.73914623,46735.0,46734.0,0.10062486]
[1649128412215,0.41725723,46735.0,46734.0,0.10062486]
[1649128412374,0.73914623,46735.0,46734.0,0.10062486]
[1649128412472,0.41725723,46735.0,46734.0,0.10062486]
[1649128412973,0.73914623,46735.0,46734.0,0.10062486]
[1649128413074,0.41725723,46735.0,46734.0,0.10062486]
[1649128413178,0.73914623,46735.0,46734.0,0.10062486]
[1649128413727,0.60428984,46735.0,46734.0,0.10062486]
[1649128413832,0.61512299,46735.0,46734.0,0.10062486]
[1649128421527,0.61512299,46735.0,46734.0,0.10051362]
[1649128424574,0.61501123,46735.0,46734.0,0.10051362]
[1649128425477,0.66852223,46735.0,46734.0,0.10051362]
[1649128426276,0.71852223,46735.0,46734.0,0.10051362]
[1649128426727,0.85938044,46735.0,46734.0,0.10051362]
[1649128426877,0.71852223,46735.0,46734.0,0.10051362]
[1649128427075,0.85938044,46735.0,46734.0,0.10051362]
[1649128427325,0.71852223,46735.0,46734.0,0.10051362]
[1649128427528,0.85938044,46735.0,46734.0,0.10051362]
[1649128427727,0.76132223,46735.0,46734.0,0.10051362]
[1649128427931,0.90195808,46735.0,46734.0,0.10051362]
[1649128428180,0.71109987,46735.0,46734.0,0.10051362]
[1649128428378,0.85195808,46735.0,46734.0,0.10051362]
[1649128428578,0.71109987,46735.0,46734.0,0.10051362]
[1649128428780,0.85195808,46735.0,46734.0,0.10051362]
[1649128428980,0.85195808,46735.0,46732.0,0.00057829]
[1649128429079,0.321889,46734.0,46726.0,0.01]
[1649128429179,0.34611351,46730.0,46726.0,0.01]
[1649128429283,0.37540489,46729.0,46726.0,0.01]
[1649128429430,0.321889,46728.0,46726.0,0.01]
[1649128429529,0.05351589,46729.0,46726.0,0.01]
[1649128429730,0.321889,46728.0,46726.0,0.01]
[1649128429831,0.05351589,46729.0,46726.0,0.01]
[1649128429939,0.321889,46728.0,46726.0,0.01]
[1649128430232,0.36635088,46727.0,46726.0,0.01]
[1649128430330,0.68823988,46727.0,46726.0,0.01]
[1649128430433,0.36635088,46727.0,46726.0,0.01]
[1649128430534,0.82309627,46727.0,46726.0,0.01]
[1649128430732,0.87661627,46727.0,46726.0,0.01]
[1649128430833,0.55472727,46727.0,46726.0,0.01]
[1649128431580,0.87661627,46727.0,46726.0,0.01]
[1649128431679,0.55472727,46727.0,46726.0,0.01]
[1649128431778,0.87661627,46727.0,46726.0,0.01]
[1649128431878,0.55472727,46727.0,46726.0,0.01]
[1649128432080,0.87661627,46727.0,46726.0,0.01]
[1649128432181,0.55472727,46727.0,46726.0,0.01]
[1649128432584,0.87661627,46727.0,46726.0,0.01]
[1649128433082,0.91941627,46727.0,46726.0,0.01]
[1649128436343,0.78455988,46727.0,46726.0,0.01]
[1649128436440,0.79539535,46727.0,46726.0,0.01]
[1649128436843,0.94539535,46727.0,46726.0,0.01]
[1649128437141,1.08628057,46727.0,46726.0,0.01]
[1649128438142,1.33941275,46727.0,46726.0,0.01]
[1649128438475,1.19852753,46727.0,46726.0,0.01]
[1649128438579,0.93455988,46727.0,46726.0,0.01]
[1649128440229,1.06941627,46727.0,46726.0,0.016368]
[1649128441531,1.31419382,46727.0,46726.0,0.016368]
[1649128441631,1.32502987,46727.0,46726.0,0.016368]
[1649128442228,1.58899752,46727.0,46726.0,0.016368]
[1649128443635,1.32502987,46727.0,46726.0,0.016368]
[1649128444084,1.58899752,46727.0,46726.0,0.01625332]
[1649128444536,1.72989437,46727.0,46726.0,0.01625332]
[1649128444637,1.46592672,46727.0,46726.0,0.01625332]
[1649128445084,1.7298711,46727.0,46726.0,0.01625332]
[1649128445789,1.46592672,46727.0,46726.0,0.01625332]
[1649128446127,1.51592672,46727.0,46726.0,0.01625332]
[1649128446324,1.77985727,46727.0,46726.0,0.01625332]
[1649128447376,1.72985727,46727.0,46726.0,0.01625332]
[1649128448277,1.35022333,46727.0,46726.0,0.01625332]
[1649128449279,1.71580622,46727.0,46726.0,0.01625332]
[1649128450019,1.45187567,46727.0,46726.0,0.01625332]
[1649128454748,1.48397567,46727.0,46726.0,0.01625332]
[1649128455053,1.74790622,46727.0,46726.0,0.01625332]
[1649128457526,1.73707017,46727.0,46726.0,0.01625332]
[1649128457727,1.74790575,46727.0,46726.0,0.01625332]
[1649128458578,1.4839752,46727.0,46726.0,0.01625332]
[1649128458981,1.74790575,46727.0,46726.0,0.01625332]
[1649128459080,1.4839752,46727.0,46726.0,0.01625332]
[1649128459180,1.74790575,46727.0,46726.0,0.01625332]
[1649128461090,1.4839752,46727.0,46726.0,0.01625332]
[1649128461437,1.74790575,46727.0,46726.0,0.01625332]
[1649128461536,1.4839752,46727.0,46726.0,0.01625332]
[1649128461737,1.74790575,46727.0,46726.0,0.01625332]
[1649128462190,1.4839752,46727.0,46726.0,0.01625332]
[1649128462640,1.4839752,46727.0,46726.0,1.006368]
[1649128462740,0.27038487,46716.0,46715.0,0.0107]
[1649128462842,0.05,46723.0,46719.0,0.01427376]
[1649128462942,0.45201724,46722.0,46719.0,0.01427376]
[1649128463043,0.46271724,46722.0,46719.0,0.01427376]
[1649128463246,0.51271724,46722.0,46719.0,0.01427376]
[1649128463997,0.05352393,46720.0,46719.0,0.01427376]
[1649128464096,0.37541293,46720.0,46719.0,0.01427376]
[1649128464198,0.42541293,46720.0,46719.0,0.01427376]
[1649128467953,0.371889,46720.0,46719.0,0.01427376]
[1649128468053,0.321889,46720.0,46719.0,0.02274357]
[1649128468154,0.05,46724.0,46719.0,0.02274357]
[1649128468155,0.0107,46723.0,46719.0,0.02274357]
[1649128468309,0.321889,46722.0,46719.0,0.02274357]
[1649128471639,0.05,46724.0,46719.0,0.02274357]
[1649128471736,0.321889,46723.0,46719.0,0.02274357]
[1649128472454,0.0607,46724.0,46719.0,0.02328885]
[1649128472554,0.321889,46723.0,46719.0,0.02328885]
[1649128472703,0.0607,46724.0,46719.0,0.02328885]
[1649128472803,0.321889,46723.0,46719.0,0.02328885]
[1649128473504,0.321889,46723.0,46719.0,0.02274357]
[1649128473705,0.321889,46723.0,46719.0,0.02328885]
[1649128473905,0.321889,46723.0,46719.0,0.01481904]
[1649128474409,0.58581721,46723.0,46719.0,0.01481904]
[1649128474658,0.58581721,46723.0,46719.0,0.01427376]
[1649128474858,0.58581721,46723.0,46719.0,0.01482127]
[1649128475260,0.6928685,46723.0,46719.0,0.01482127]
[1649128475661,0.58581721,46723.0,46719.0,0.01482127]
[1649128475993,0.58581721,46723.0,46719.0,0.01427376]
[1649128476092,0.321889,46723.0,46719.0,0.01482115]
[1649128477093,0.321889,46723.0,46719.0,0.01427376]
[1649128477293,0.321889,46723.0,46719.0,0.01482115]
[1649128478148,0.58581721,46723.0,46719.0,0.01482115]
[1649128478297,0.58581721,46723.0,46719.0,0.01427376]
[1649128478502,0.321889,46723.0,46719.0,0.01482101]
[1649128478696,0.58581721,46723.0,46719.0,0.01482101]
[1649128478799,0.321889,46723.0,46719.0,0.01482101]
[1649128478897,0.58581721,46723.0,46719.0,0.01482101]
[1649128479297,0.321889,46723.0,46719.0,0.01482101]
[1649128479399,0.58581721,46723.0,46719.0,0.01482101]
[1649128479498,0.58581721,46723.0,46719.0,0.01427376]
[1649128479750,0.58581721,46723.0,46719.0,0.01482094]
[1649128480044,0.321889,46723.0,46719.0,0.01482094]
[1649128480446,0.58581721,46723.0,46719.0,0.01482094]
[1649128480651,0.58581721,46723.0,46719.0,0.01427376]
[1649128480749,0.63933846,46723.0,46719.0,0.01427376]
[1649128480898,0.63933846,46723.0,46719.0,0.01482094]
[1649128481198,0.26392821,46722.0,46719.0,0.01482094]
[1649128481301,0.321889,46721.0,46719.0,0.01482094]
[1649128481851,0.321889,46721.0,46720.0,0.00846981]
[1649128482803,0.26392821,46723.0,46720.0,0.00846981]
[1649128482905,0.31392821,46724.0,46720.0,0.00846981]
[1649128483154,0.321889,46723.0,46720.0,0.00846981]
[1649128483255,0.31392821,46724.0,46720.0,0.00901701]
[1649128483493,0.321889,46723.0,46720.0,0.00901701]
[1649128483692,0.31392821,46724.0,46720.0,0.00901701]
[1649128484092,0.321889,46723.0,46720.0,0.00901701]
[1649128484191,0.31392821,46724.0,46720.0,0.00901701]
[1649128484291,0.321889,46723.0,46720.0,0.00846981]
[1649128484492,0.05,46724.0,46720.0,0.00846981]
[1649128484796,0.321889,46722.0,46720.0,0.00846981]
[1649128484893,0.05,46724.0,46720.0,0.00846981]
[1649128485097,0.321889,46723.0,46720.0,0.00846981]
[1649128485897,0.05,46724.0,46720.0,0.00846981]
[1649128486197,0.321889,46723.0,46720.0,0.00846981]
[1649128486295,0.05,46724.0,46720.0,0.00846981]
[1649128486398,0.321889,46723.0,46720.0,0.00846981]
[1649128486494,0.05,46724.0,46720.0,0.00846981]
[1649128486801,0.321889,46723.0,46720.0,0.00846981]
[1649128486896,0.321889,46723.0,46720.0,0.00901701]
[1649128487003,0.05,46724.0,46720.0,0.00901701]
[1649128487148,0.321889,46723.0,46720.0,0.00901701]
[1649128487690,0.321889,46722.0,46720.0,0.00901701]
[1649128487792,0.05,46724.0,46720.0,0.00901701]
[1649128487892,0.321889,46723.0,46719.0,0.01427376]
[1649128488093,0.321889,46723.0,46722.0,0.00846981]
[1649128490850,0.55643261,46723.0,46722.0,0.00846981]
[1649128490999,0.321889,46723.0,46722.0,0.00846981]
[1649128492942,0.2789943,46727.0,46725.0,0.09765897]
[1649128493092,0.33271619,46726.0,46725.0,0.09765897]
[1649128493192,0.33271619,46726.0,46725.0,0.10612878]
[1649128494297,0.321882,46726.0,46725.0,0.10612878]
[1649128494396,0.33271607,46726.0,46725.0,0.10612878]
[1649128496639,0.321882,46726.0,46725.0,0.10612878]
[1649128500553,0.0107,46730.0,46725.0,0.10612878]
[1649128500660,0.45205847,46740.0,46726.0,0.3]
[1649128500661,0.30805116,46732.0,46726.0,0.3]
[1649128500766,0.45961773,46734.0,46731.0,0.00846981]
[1649128500855,0.31875116,46734.0,46731.0,0.00846981]
[1649128500954,0.540452,46735.0,46732.0,0.321783]
[1649128501057,0.540452,46735.0,46733.0,0.3]
[1649128501159,0.23240084,46735.0,46730.0,0.3]
[1649128501258,0.23240084,46735.0,46734.0,0.00846981]
[1649128501757,0.23240084,46735.0,46734.0,0.33023681]
[1649128501853,0.23240084,46735.0,46734.0,0.60309119]
[1649128501954,0.23240084,46735.0,46734.0,0.33023681]
[1649128502056,0.23240084,46735.0,46734.0,0.00846981]
[1649128502155,0.23240084,46735.0,46734.0,0.33023681]
[1649128502403,0.23240084,46735.0,46734.0,0.00846981]
[1649128502604,0.23240084,46735.0,46734.0,0.33023681]
[1649128503005,0.23240084,46735.0,46734.0,0.62682994]
[1649128507143,0.23240084,46735.0,46734.0,0.33023681]
[1649128508097,0.23240084,46735.0,46734.0,0.00846981]
[1649128509000,0.23240084,46735.0,46734.0,0.05457215]
[1649128509204,0.58117588,46735.0,46734.0,0.05457215]
[1649128509300,0.81352066,46735.0,46734.0,0.05457215]
[1649128509500,0.81352066,46735.0,46734.0,0.04610234]
[1649128509943,0.94837705,46735.0,46734.0,0.04610234]
[1649128515554,1.25618609,46735.0,46734.0,0.04610234]
[1649128515652,1.25618609,46735.0,46734.0,0.04599251]
[1649128515653,1.29898609,46735.0,46734.0,0.04599251]
[1649128515751,1.29898609,46735.0,46725.0,0.09765897]
[1649128515752,1.01316375,46735.0,46732.0,0.0005471]
[1649128515852,0.24189639,46733.0,46732.0,0.0005471]
[1649128515952,0.43975631,46733.0,46732.0,0.0005471]
[1649128516054,0.48255631,46733.0,46732.0,0.0005471]
[1649128516155,0.79037177,46733.0,46732.0,0.0005471]
[1649128516359,1.57173931,46733.0,46732.0,7.1e-06]
[1649128516467,2.66525768,46733.0,46691.0,0.1072]
[1649128516570,2.66525768,46733.0,46685.0,0.633066]
[1649128516571,0.35,46711.0,46702.0,0.10598]
[1649128516714,0.35,46711.0,46698.0,0.5]
[1649128516715,0.19153019,46703.0,46682.0,0.27]
[1649128516778,0.3,46702.0,46683.0,0.26272915]
[1649128516864,0.6,46709.0,46682.0,0.09699999]
[1649128516866,0.02543,46691.0,46688.0,0.17515277]
[1649128516963,0.02543,46691.0,46680.0,1.2745361]
[1649128516964,0.10893,46691.0,46680.0,1.2745361]
[1649128517062,0.5353,46689.0,46681.0,0.01071]
[1649128517158,0.7544745,46689.0,46680.0,0.2863461]
[1649128517277,1.318482,46690.0,46674.0,0.44488406]
[1649128517278,0.5353,46681.0,46674.0,0.44488406]
[1649128517381,0.22306462,46677.0,46674.0,0.44488406]
[1649128517487,1.0544745,46676.0,46667.0,0.21906856]
[1649128517582,1.0544745,46676.0,46666.0,0.01]
[1649128517583,0.7544745,46675.0,46668.0,0.01071]
[1649128517681,0.7544745,46674.0,46666.0,0.01]
[1649128517777,0.7544745,46671.0,46666.0,0.01]
[1649128517876,1.3763565,46670.0,46666.0,0.01]
[1649128517978,1.3763565,46670.0,46667.0,0.01071]
[1649128517979,0.7544745,46669.0,46667.0,0.01071]
[1649128518081,0.3,46668.0,46667.0,0.01071]
[1649128518180,0.63272989,46668.0,46667.0,0.01071]
[1649128518281,1.06532239,46668.0,46667.0,0.01071]
[1649128518482,0.02304853,46665.0,46657.0,0.0999]
[1649128518583,0.7544745,46660.0,46657.0,0.0999]
[1649128518682,1.0544745,46659.0,46657.0,0.0999]
[1649128518781,1.0653253,46658.0,46657.0,0.0999]
[1649128518880,1.3872073,46658.0,46651.0,0.01]
[1649128518985,1.3872073,46658.0,46652.0,0.01072]
[1649128518986,0.7544745,46655.0,46652.0,0.01072]
[1649128519082,0.7544745,46652.0,46651.0,0.01]
[1649128519186,1.3763565,46652.0,46651.0,0.01]
[1649128519282,1.43001103,46652.0,46651.0,0.01]
[1649128519388,1.43001103,46652.0,46651.0,0.02110443]
[1649128519478,1.96531103,46652.0,46651.0,0.01038443]
[1649128519679,0.04067088,46640.0,46615.0,0.7314]
[1649128519784,0.7544745,46638.0,46621.0,0.42217095]
[1649128519879,0.7544745,46638.0,46621.0,0.2446]
[1649128519983,0.7544745,46638.0,46636.0,0.01]
[1649128520090,1.3763565,46637.0,46636.0,0.01]
[1649128520186,1.3763565,46637.0,46621.0,0.2446]
[1649128520187,0.321882,46636.0,46621.0,0.2446]
[1649128520284,0.7544745,46627.0,46621.0,0.01]
[1649128520396,0.8563245,46627.0,46622.0,0.321882]
[1649128520489,0.7544745,46626.0,46622.0,0.321882]
[1649128520581,0.7544745,46626.0,46621.0,0.01]
[1649128520582,0.7544745,46626.0,46624.0,0.15946636]
[1649128520686,0.7544745,46626.0,46625.0,0.54837084]
[1649128520784,0.14107555,46626.0,46625.0,0.54837084]
[1649128520883,0.00594555,46626.0,46625.0,0.54837084]
[1649128521022,0.04868,46627.0,46625.0,0.75382971]
[1649128521120,0.04868,46627.0,46625.0,0.27248135]
[1649128521219,0.03328,46627.0,46626.0,0.48134836]
[1649128521418,0.03328,46627.0,46626.0,0.321882]
[1649128521517,0.3,46636.0,46626.0,0.48134836]
[1649128521629,0.02689304,46627.0,46626.0,0.48134836]
[1649128521716,0.02689304,46627.0,46626.0,0.8369422]
[1649128521817,0.02689304,46627.0,46626.0,1.07428542]
[1649128522118,0.02689304,46627.0,46626.0,0.71869158]
[1649128522970,0.78136754,46627.0,46626.0,0.01092131]
[1649128523069,0.78136754,46627.0,46625.0,0.27248135]
[1649128523168,0.7544745,46626.0,46625.0,0.27248135]
[1649128523269,0.7544745,46626.0,46625.0,0.04599251]
[1649128523568,0.78136754,46627.0,46625.0,0.04599251]
[1649128523667,0.02689304,46627.0,46625.0,0.04599251]
[1649128524073,0.02689304,46627.0,46625.0,0.01846905]
[1649128524188,0.02689304,46627.0,46626.0,0.81413867]
[1649128524273,0.02689304,46627.0,46626.0,0.8343838]
[1649128524274,9.304e-05,46627.0,46626.0,0.8343838]
[1649128524379,9.304e-05,46627.0,46626.0,1.0843838]
[1649128524479,0.04067088,46640.0,46634.0,0.2061677]
[1649128524748,0.04067088,46640.0,46633.0,0.01092131]
[1649128524850,0.04067088,46640.0,46638.0,0.2389403]
[1649128525051,0.04067088,46640.0,46633.0,0.01092131]
[1649128525357,0.04067088,46640.0,46628.0,0.01072]
[1649128525358,0.04067088,46640.0,46634.0,0.5496356]
[1649128525453,0.04067088,46640.0,46637.0,0.00061567]
[1649128526154,0.08,46639.0,46637.0,0.00061567]
[1649128526259,0.00061555,46646.0,46640.0,0.18763301]
[1649128526360,0.00061555,46646.0,46640.0,0.05]
[1649128526456,0.23711735,46651.0,46641.0,0.64578337]
[1649128526659,0.23711735,46651.0,46650.0,0.24904903]
[1649128527060,0.23711735,46651.0,46650.0,0.11972491]
[1649128527467,0.01072,46656.0,46650.0,0.11972491]
[1649128527559,0.01072,46660.0,46650.0,0.11972491]
[1649128527659,0.31072,46660.0,46647.0,0.19830337]
[1649128527756,0.18907869,46658.0,46647.0,0.19830337]
[1649128527861,0.7544745,46656.0,46642.0,0.00061567]
[1649128528011,0.00061552,46653.0,46642.0,0.00061567]
[1649128528307,0.75509002,46653.0,46642.0,0.00061567]
[1649128528412,0.7544745,46652.0,46642.0,0.00061567]
[1649128528556,0.3,46651.0,46642.0,0.00061567]
[1649128528756,0.3,46651.0,46643.0,0.28679227]
[1649128528954,0.31072,46654.0,46643.0,0.28679227]
[1649128529054,1.0651945,46654.0,46643.0,0.28679227]
[1649128529204,0.31072,46654.0,46643.0,0.28679227]
[1649128529305,0.00059479,46649.0,46643.0,0.28679227]
[1649128530008,0.5995834,46654.0,46643.0,0.28679227]
[1649128530309,0.0005948,46648.0,46643.0,0.28679227]
[1649128531258,0.5995834,46654.0,46643.0,0.28679227]
[1649128531514,0.5995834,46654.0,46642.0,0.00059488]
[1649128531515,0.0005948,46648.0,46642.0,0.00059488]
[1649128532395,0.3,46651.0,46637.0,0.01072]
[1649128532494,0.18907869,46652.0,46637.0,0.21717136]
[1649128532593,0.18907869,46652.0,46642.0,0.00057503]
[1649128532693,0.00057496,46647.0,46642.0,0.00057503]
[1649128533444,0.00057496,46647.0,46644.0,0.22639077]
[1649128533593,0.3,46651.0,46640.0,0.37227959]
[1649128533695,0.3,46651.0,46636.0,0.4483301]
[1649128533793,0.3,46651.0,46642.0,0.00057503]
[1649128533895,0.00057495,46648.0,46642.0,0.00057503]
[1649128534597,0.28143232,46648.0,46642.0,0.00057503]
[1649128534797,0.28143232,46648.0,46636.0,0.81856044]
[1649128534798,0.28085737,46648.0,46636.0,0.81856044]
[1649128534897,0.3,46647.0,46636.0,0.4483301]
[1649128535048,0.00057496,46647.0,46642.0,0.00057503]
[1649128535345,0.30057496,46647.0,46642.0,0.00057503]
[1649128535447,0.00057496,46647.0,46642.0,0.00057503]
[1649128535646,0.30057496,46647.0,46642.0,0.00057503]
[1649128535748,0.00057496,46647.0,46642.0,0.00057503]
[1649128536039,0.00057496,46647.0,46639.0,0.24719558]
[1649128536040,0.28085737,46648.0,46639.0,0.24719558]
[1649128536140,0.31072,46651.0,46639.0,0.24719558]
[1649128536240,0.0005763,46647.0,46642.0,0.00057636]
[1649128536643,0.0005763,46647.0,46646.0,0.01846905]
[1649128537243,0.322035,46650.0,46646.0,0.01846905]
[1649128537342,0.18907869,46652.0,46646.0,0.01846905]
[1649128537442,0.00057629,46649.0,46646.0,0.01846905]
[1649128538150,0.28029002,46647.0,46646.0,0.01846905]
[1649128538445,0.35359915,46651.0,46646.0,0.01846905]
[1649128538542,0.0369381,46644.0,46639.0,0.24719558]
[1649128538642,0.0369381,46644.0,46642.0,0.00057637]
[1649128539595,0.0369381,46644.0,46639.0,0.24719558]
[1649128539842,0.0369381,46644.0,46641.0,0.00057628]
[1649128540647,0.322035,46643.0,46641.0,0.00057628]
[1649128540743,0.3,46642.0,46641.0,0.00057628]
[1649128540892,0.3,46642.0,46631.0,0.01072]
[1649128541042,0.3,46642.0,46640.0,0.00057628]
[1649128541244,0.29693893,46641.0,46640.0,0.00057628]
[1649128541344,0.59693893,46641.0,46640.0,0.00057628]
[1649128541943,0.3,46641.0,46640.0,0.00057628]
[1649128542046,0.3,46641.0,46633.0,0.23252324]
[1649128542251,0.3,46641.0,46638.0,0.0005763]
[1649128542997,0.30452473,46639.0,46638.0,0.0005763]
[1649128543096,0.3,46641.0,46638.0,0.0005763]
[1649128543196,0.3,46641.0,46633.0,0.23252324]
[1649128543397,0.3,46641.0,46636.0,0.00057632]
[1649128543540,0.3,46641.0,46640.0,0.00362404]
[1649128545643,0.3,46641.0,46638.0,0.00272535]
[1649128545848,0.3,46641.0,46638.0,0.00330165]
[1649128546547,0.322035,46640.0,46638.0,0.00330165]
[1649128546647,0.81111369,46639.0,46638.0,0.00330165]
[1649128546844,0.85391369,46639.0,46638.0,0.00272535]
[1649128546947,0.8647702,46639.0,46638.0,0.00272535]
[1649128547046,0.85391369,46639.0,46638.0,0.00272535]
[1649128547146,1.13476985,46639.0,46638.0,0.00272535]
[1649128547295,1.18476985,46639.0,46638.0,0.00272535]
[1649128547498,1.69759661,46639.0,46638.0,0.00272535]
[1649128547695,1.69759626,46639.0,46636.0,0.00329435]
[1649128547797,0.33289081,46637.0,46636.0,0.00329435]
[1649128547897,0.63289081,46637.0,46636.0,0.00329435]
[1649128547996,0.664835,46637.0,46636.0,0.00271803]
[1649128548099,0.67569069,46637.0,46636.0,0.00271803]
[1649128548500,0.81816619,46637.0,46636.0,0.00271803]
[1649128548697,0.86816619,46637.0,46636.0,0.00271803]
[1649128548797,0.82536619,46637.0,46636.0,0.00271803]
[1649128548998,1.09536619,46637.0,46636.0,0.00271803]
[1649128549100,1.0845105,46637.0,46636.0,0.00271803]
[1649128549499,0.942035,46637.0,46636.0,0.00271803]
[1649128549697,0.942035,46637.0,46636.0,0.00249567]
[1649128549798,0.942035,46637.0,46634.0,0.00275661]
[1649128549900,0.18907869,46635.0,46634.0,0.00275661]
[1649128550059,0.81111369,46635.0,46634.0,0.00275661]
[1649128550199,1.1157036,46635.0,46634.0,0.00275661]
[1649128550398,1.1157036,46635.0,46634.0,0.00218028]
[1649128550600,0.82196926,46635.0,46634.0,0.00218028]
[1649128551154,0.81111369,46635.0,46634.0,0.00218028]
[1649128551398,0.322035,46635.0,46634.0,0.00218028]
[1649128551497,0.49979869,46641.0,46634.0,0.00218028]
[1649128551498,0.01072,46641.0,46634.0,0.00218028]
[1649128551699,0.0369381,46644.0,46634.0,0.28202075]
[1649128551801,0.5,46641.0,46634.0,0.28202075]
[1649128551896,0.5,46641.0,46634.0,0.32984047]
[1649128552795,0.5,46641.0,46634.0,0.05]
[1649128552894,0.3,46642.0,46634.0,0.05]
[1649128552998,3.3,46641.0,46626.0,0.00096947]
[1649128553097,3.3,46641.0,46635.0,0.00057633]
[1649128553197,0.01072,46640.0,46635.0,0.00057633]
[1649128553346,0.3,46640.0,46635.0,0.00057633]
[1649128554047,0.3,46640.0,46627.0,0.01072]
[1649128554145,0.3,46640.0,46632.0,0.26981036]
[1649128554249,0.3,46640.0,46635.0,0.00057633]
[1649128555296,0.3,46640.0,46632.0,0.31481036]
[1649128555494,0.3,46640.0,46635.0,0.00034367]
[1649128555697,0.322035,46639.0,46635.0,0.00034367]
[1649128555795,0.3,46640.0,46635.0,0.00034367]
[1649128555896,0.322035,46639.0,46635.0,0.00034367]
[1649128555996,0.3,46640.0,46635.0,0.00034367]
[1649128556402,0.322035,46639.0,46635.0,0.00034367]
[1649128556499,0.322035,46638.0,46632.0,0.045]
[1649128556600,0.3,46640.0,46632.0,0.045]
[1649128556701,0.29990836,46640.0,46635.0,0.00057669]
[1649128557201,0.48898705,46640.0,46635.0,0.00057669]
[1649128557500,0.29990836,46640.0,46635.0,0.00057669]
[1649128557602,0.18907869,46636.0,46635.0,0.00057669]
[1649128557755,0.48907869,46636.0,46623.0,0.01072]
[1649128557852,0.48907869,46636.0,46635.0,0.00059286]
[1649128558050,0.81111369,46636.0,46635.0,0.00059286]
[1649128558201,0.48907869,46636.0,46635.0,0.00059286]
[1649128558301,0.81111369,46636.0,46635.0,0.00059286]
[1649128558500,0.00118571,46631.0,46628.0,0.0023718]
[1649128558750,0.30118571,46631.0,46628.0,0.0023718]
[1649128558851,0.00118571,46631.0,46626.0,0.27487887]
[1649128559202,0.00118571,46631.0,46626.0,0.29514074]
[1649128561056,0.00118571,46631.0,46628.0,0.00273418]
[1649128563102,0.00118571,46631.0,46627.0,0.00334296]
[1649128563603,0.00118571,46631.0,46627.0,0.00272685]
[1649128563806,0.00118571,46631.0,46627.0,0.00334297]
[1649128563903,0.24364963,46631.0,46627.0,0.00334297]
[1649128564003,0.00118571,46631.0,46627.0,0.00334297]
[1649128564856,0.00118571,46631.0,46627.0,0.00272685]
[1649128565107,0.00118571,46631.0,46627.0,0.00334297]
[1649128565205,0.30118571,46631.0,46627.0,0.00061612]
[1649128565407,0.00118571,46631.0,46627.0,0.00061612]
[1649128565508,0.30118571,46631.0,46627.0,0.00061612]
[1649128565607,0.00118571,46631.0,46627.0,0.00061612]
[1649128566004,0.00118571,46631.0,46624.0,0.33091679]
[1649128566204,0.00118571,46631.0,46627.0,0.00059537]
[1649128566806,0.0009309,46631.0,46627.0,0.00059537]
[1649128567105,0.0009309,46631.0,46629.0,0.00218441]
[1649128569112,0.0009309,46631.0,46628.0,0.00423117]
[1649128569612,0.0009309,46631.0,46628.0,0.00363581]
[1649128571593,0.0009309,46631.0,46627.0,0.00421131]
[1649128572096,0.0009309,46631.0,46627.0,0.00363581]
[1649128572297,0.26352702,46630.0,46627.0,0.00421132]
[1649128572397,0.3,46629.0,46627.0,0.00421132]
[1649128572495,0.45260571,46630.0,46627.0,0.00421132]
[1649128572995,0.3,46629.0,46627.0,0.00421132]
[1649128573296,0.45260571,46630.0,46627.0,0.00363581]